[Event "*** SCC Grand Prix: Titled Tuesday Blitz"]
[Site "Chess.com"]
[Date "2020.08.11"]
[Round "10"]
[White "kngopal"]
[Black "Zarikovs1999"]
[Result "1-0"]
[WhiteElo "2212"]
[BlackElo "2358"]
[TimeControl "180+1"]
[EndTime "11:59:35 PDT"]
[Termination "kngopal won by checkmate"]

1. b3 {[%clk 0:03:00.9]} 1... Nf6 {[%clk 0:02:54.5]} 2. Bb2 {[%clk 0:02:54.5]}
2... g6 {[%clk 0:02:55.4]} 3. g4 {[%clk 0:02:52.4]} 3... Bg7 {[%clk 0:02:54.6]}
4. g5 {[%clk 0:02:51.9]} 4... Nh5 {[%clk 0:02:54.8]} 5. Bxg7 {[%clk 0:02:51.5]}
5... Nxg7 {[%clk 0:02:55.7]} 6. Qc1 {[%clk 0:02:51.6]} 6... e5 {[%clk
0:02:53.6]} 7. h4 {[%clk 0:02:50.8]} 7... h6 {[%clk 0:02:53.8]} 8. Qb2 {[%clk
0:02:46.2]} 8... hxg5 {[%clk 0:02:37.9]} 9. Qxe5+ {[%clk 0:02:40.5]} 9... Kf8
{[%clk 0:02:37.8]} 10. Nf3 {[%clk 0:02:27.7]} 10... g4 {[%clk 0:02:14.1]} 11.
Qg5 {[%clk 0:02:07.2]} 11... Qxg5 {[%clk 0:01:55.5]} 12. Nxg5 {[%clk 0:02:06.1]}
12... d5 {[%clk 0:01:55.9]} 13. Bg2 {[%clk 0:02:05.2]} 13... f6 {[%clk
0:01:53.4]} 14. Nc3 {[%clk 0:01:42.4]} 14... fxg5 {[%clk 0:01:32]} 15. Nxd5
{[%clk 0:01:42]} 15... Na6 {[%clk 0:01:30.1]} 16. hxg5 {[%clk 0:01:38.8]} 16...
Rxh1+ {[%clk 0:01:29.5]} 17. Bxh1 {[%clk 0:01:39]} 17... Ne6 {[%clk 0:01:29.7]}
18. O-O-O {[%clk 0:01:35]} 18... Nxg5 {[%clk 0:01:30]} 19. Rg1 {[%clk
0:01:33.3]} 19... Kf7 {[%clk 0:01:20.6]} 20. Ne3 {[%clk 0:01:24.9]} 20... Be6
{[%clk 0:01:15.5]} 21. Bxb7 {[%clk 0:01:22.6]} 21... Nh3 {[%clk 0:00:46.4]} 22.
Rg2 {[%clk 0:01:15.1]} 22... Rh8 {[%clk 0:00:39.3]} 23. Bxa6 {[%clk 0:01:13.1]}
23... Nf4 {[%clk 0:00:40.2]} 24. Rg1 {[%clk 0:00:49.1]} 24... Rh2 {[%clk
0:00:40.4]} 25. Nxg4 {[%clk 0:00:47.2]} 25... Bxg4 {[%clk 0:00:37.9]} 26. Rxg4
{[%clk 0:00:43.7]} 26... Rxf2 {[%clk 0:00:38.8]} 27. e3 {[%clk 0:00:40.9]} 27...
Nh5 {[%clk 0:00:36.1]} 28. Bd3 {[%clk 0:00:38.4]} 28... Rf6 {[%clk 0:00:23.6]}
29. Rc4 {[%clk 0:00:28.7]} 29... g5 {[%clk 0:00:18.1]} 30. Rc5 {[%clk
0:00:24.9]} 30... Ke6 {[%clk 0:00:19]} 31. Rxg5 {[%clk 0:00:23.9]} 31... Rh6
{[%clk 0:00:17.9]} 32. c4 {[%clk 0:00:20.3]} 32... Nf6 {[%clk 0:00:17.5]} 33.
Bf5+ {[%clk 0:00:17.6]} 33... Kd6 {[%clk 0:00:17.3]} 34. Rg6 {[%clk 0:00:16.4]}
34... Rxg6 {[%clk 0:00:16.4]} 35. Bxg6 {[%clk 0:00:17.3]} 35... Ng4 {[%clk
0:00:17.3]} 36. Bc2 {[%clk 0:00:16.4]} 36... c5 {[%clk 0:00:17.6]} 37. d4 {[%clk
0:00:16.1]} 37... Nxe3 {[%clk 0:00:17.7]} 38. dxc5+ {[%clk 0:00:15.7]} 38...
Kxc5 {[%clk 0:00:18.6]} 39. Kd2 {[%clk 0:00:14.4]} 39... Nf1+ {[%clk 0:00:18.9]}
40. Kc3 {[%clk 0:00:14.1]} 40... Ne3 {[%clk 0:00:13.9]} 41. b4+ {[%clk
0:00:13.5]} 41... Kb6 {[%clk 0:00:14.8]} 42. Be4 {[%clk 0:00:12.3]} 42... Ng4
{[%clk 0:00:13.7]} 43. Kd4 {[%clk 0:00:11.6]} 43... Nf6 {[%clk 0:00:13.1]} 44.
c5+ {[%clk 0:00:11.3]} 44... Kb5 {[%clk 0:00:13.7]} 45. a3 {[%clk 0:00:09.5]}
45... Ne8 {[%clk 0:00:12.9]} 46. c6 {[%clk 0:00:03.8]} 46... Nc7 {[%clk
0:00:12.3]} 47. Bf3 {[%clk 0:00:03.2]} 47... Kb6 {[%clk 0:00:11.4]} 48. Kc4
{[%clk 0:00:02.3]} 48... Nb5 {[%clk 0:00:10.5]} 49. a4 {[%clk 0:00:01.8]} 49...
Nd6+ {[%clk 0:00:11]} 50. Kb3 {[%clk 0:00:02]} 50... Kc7 {[%clk 0:00:11.9]} 51.
b5 {[%clk 0:00:01.6]} 51... Nc8 {[%clk 0:00:12.8]} 52. Kb4 {[%clk 0:00:01.8]}
52... Ne7 {[%clk 0:00:13.4]} 53. a5 {[%clk 0:00:01.9]} 53... Nc8 {[%clk
0:00:14.1]} 54. Kc5 {[%clk 0:00:02.2]} 54... Kb8 {[%clk 0:00:05.9]} 55. b6
{[%clk 0:00:03.1]} 55... axb6+ {[%clk 0:00:06.8]} 56. axb6 {[%clk 0:00:04]}
56... Nxb6 {[%clk 0:00:06.7]} 57. Kxb6 {[%clk 0:00:03.8]} 57... Kc8 {[%clk
0:00:07.1]} 58. c7 {[%clk 0:00:04.2]} 58... Kd7 {[%clk 0:00:07.4]} 59. Kb7
{[%clk 0:00:05.1]} 59... Ke7 {[%clk 0:00:08.3]} 60. c8=Q {[%clk 0:00:04.4]}
60... Kf6 {[%clk 0:00:09.2]} 61. Qc6+ {[%clk 0:00:05]} 61... Ke5 {[%clk
0:00:10.1]} 62. Qe4+ {[%clk 0:00:05.7]} 62... Kd6 {[%clk 0:00:10.1]} 63. Kb6
{[%clk 0:00:05.3]} 63... Kd7 {[%clk 0:00:09.6]} 64. Qg6 {[%clk 0:00:05.1]} 64...
Kc8 {[%clk 0:00:10.5]} 65. Kc5 {[%clk 0:00:05.2]} 65... Kd8 {[%clk 0:00:10.7]}
66. Qg7 {[%clk 0:00:05.3]} 66... Kc8 {[%clk 0:00:10.9]} 67. Kd6 {[%clk
0:00:05.9]} 67... Kd8 {[%clk 0:00:11.8]} 68. Qc7+ {[%clk 0:00:06.2]} 68... Ke8
{[%clk 0:00:12]} 69. Qe7# {[%clk 0:00:07.1]} 1-0

[Event "*** SCC Grand Prix: Titled Tuesday Blitz"]
[Site "Chess.com"]
[Date "2020.08.11"]
[Round "10"]
[White "Gerodot71"]
[Black "VladaSviridova"]
[Result "1/2-1/2"]
[WhiteElo "2398"]
[BlackElo "2249"]
[TimeControl "180+1"]
[EndTime "11:59:37 PDT"]
[Termination "Game drawn by stalemate"]

1. d4 {[%clk 0:03:00.9]} 1... d5 {[%clk 0:02:59.7]} 2. c4 {[%clk 0:03:00.2]}
2... c6 {[%clk 0:02:59.9]} 3. Nf3 {[%clk 0:02:59.9]} 3... Nf6 {[%clk 0:02:59.7]}
4. Nc3 {[%clk 0:02:59.2]} 4... dxc4 {[%clk 0:02:59.4]} 5. a4 {[%clk 0:02:56.8]}
5... Bf5 {[%clk 0:02:59.3]} 6. Ne5 {[%clk 0:02:53.5]} 6... Nbd7 {[%clk
0:02:59.6]} 7. Nxc4 {[%clk 0:02:51.2]} 7... Qc7 {[%clk 0:03:00.2]} 8. g3 {[%clk
0:02:40]} 8... e5 {[%clk 0:03:00.2]} 9. dxe5 {[%clk 0:02:40.1]} 9... Nxe5 {[%clk
0:03:00.4]} 10. Bf4 {[%clk 0:02:40.6]} 10... Nfd7 {[%clk 0:03:00.7]} 11. Bg2
{[%clk 0:02:39.6]} 11... f6 {[%clk 0:03:01]} 12. O-O {[%clk 0:02:37.5]} 12...
Be6 {[%clk 0:03:01.2]} 13. Nxe5 {[%clk 0:02:34.9]} 13... Nxe5 {[%clk 0:03:01.3]}
14. Qc2 {[%clk 0:02:30.7]} 14... Qa5 {[%clk 0:02:19.1]} 15. Rad1 {[%clk
0:02:20.4]} 15... Be7 {[%clk 0:02:17.2]} 16. Bd2 {[%clk 0:02:18.6]} 16... Bb4
{[%clk 0:02:05.2]} 17. Ne4 {[%clk 0:02:13.3]} 17... O-O {[%clk 0:01:56.8]} 18.
Bxb4 {[%clk 0:02:08]} 18... Qxb4 {[%clk 0:01:56.2]} 19. Nc5 {[%clk 0:02:08.5]}
19... Bc4 {[%clk 0:01:45.7]} 20. Nd3 {[%clk 0:02:02.8]} 20... Nxd3 {[%clk
0:01:44.2]} 21. exd3 {[%clk 0:02:01.4]} 21... Bb3 {[%clk 0:01:44.4]} 22. Qd2
{[%clk 0:02:02]} 22... Qxd2 {[%clk 0:01:38.6]} 23. Rxd2 {[%clk 0:02:02.9]} 23...
Bxa4 {[%clk 0:01:38.7]} 24. Ra1 {[%clk 0:02:01.9]} 24... Bb5 {[%clk 0:01:36.4]}
25. d4 {[%clk 0:02:01.9]} 25... a6 {[%clk 0:01:31.2]} 26. d5 {[%clk 0:02:00.6]}
26... Rad8 {[%clk 0:01:06.3]} 27. Rad1 {[%clk 0:01:57.3]} 27... Ba4 {[%clk
0:00:35.1]} 28. Re1 {[%clk 0:01:46]} 28... cxd5 {[%clk 0:00:32.4]} 29. Rxd5
{[%clk 0:01:40.4]} 29... Bc6 {[%clk 0:00:30.3]} 30. Rxd8 {[%clk 0:01:38.1]}
30... Rxd8 {[%clk 0:00:29.9]} 31. Bxc6 {[%clk 0:01:38.4]} 31... bxc6 {[%clk
0:00:29.9]} 32. Re6 {[%clk 0:01:38.6]} 32... Rc8 {[%clk 0:00:29.6]} 33. Re4
{[%clk 0:01:33]} 33... Rb8 {[%clk 0:00:28.9]} 34. Ra4 {[%clk 0:01:30.3]} 34...
Rxb2 {[%clk 0:00:26.6]} 35. Rxa6 {[%clk 0:01:29.7]} 35... Rc2 {[%clk 0:00:26.9]}
36. Ra7 {[%clk 0:01:29.8]} 36... h5 {[%clk 0:00:26.7]} 37. h4 {[%clk 0:01:28.3]}
37... Kh7 {[%clk 0:00:27]} 38. Rc7 {[%clk 0:01:28.8]} 38... c5 {[%clk
0:00:24.6]} 39. Kg2 {[%clk 0:01:29.7]} 39... c4 {[%clk 0:00:24.3]} 40. Kf3
{[%clk 0:01:30.1]} 40... Kg6 {[%clk 0:00:24.1]} 41. Ke3 {[%clk 0:01:29.3]} 41...
f5 {[%clk 0:00:19.6]} 42. f3 {[%clk 0:01:27.8]} 42... Kf6 {[%clk 0:00:18.7]} 43.
Kf4 {[%clk 0:01:27.5]} 43... g6 {[%clk 0:00:17.1]} 44. Rc6+ {[%clk 0:01:27.5]}
44... Kf7 {[%clk 0:00:17.4]} 45. Kg5 {[%clk 0:01:25.6]} 45... Rg2 {[%clk
0:00:16.4]} 46. Rc7+ {[%clk 0:01:25.8]} 46... Ke6 {[%clk 0:00:16.2]} 47. Kxg6
{[%clk 0:01:25.5]} 47... Rxg3+ {[%clk 0:00:16.1]} 48. Kxh5 {[%clk 0:01:25.7]}
48... Rxf3 {[%clk 0:00:15.3]} 49. Rxc4 {[%clk 0:01:25.3]} 49... Rg3 {[%clk
0:00:15.5]} 50. Kh6 {[%clk 0:01:15.3]} 50... Rg4 {[%clk 0:00:15.2]} 51. Rc1
{[%clk 0:01:02.9]} 51... Rxh4+ {[%clk 0:00:14.1]} 52. Kg5 {[%clk 0:01:03.8]}
52... Rg4+ {[%clk 0:00:14.3]} 53. Kh5 {[%clk 0:01:04.3]} 53... Rg2 {[%clk
0:00:14.2]} 54. Re1+ {[%clk 0:01:03.3]} 54... Kf6 {[%clk 0:00:14.1]} 55. Rf1
{[%clk 0:01:01.7]} 55... Rg8 {[%clk 0:00:14.1]} 56. Kh4 {[%clk 0:01:00.1]} 56...
Ke5 {[%clk 0:00:12.5]} 57. Re1+ {[%clk 0:00:59.9]} 57... Kf4 {[%clk 0:00:12]}
58. Rf1+ {[%clk 0:01:00.2]} 58... Ke4 {[%clk 0:00:12.3]} 59. Re1+ {[%clk
0:01:00.4]} 59... Kf3 {[%clk 0:00:12.5]} 60. Rf1+ {[%clk 0:01:00.8]} 60... Ke4
{[%clk 0:00:12.2]} 61. Re1+ {[%clk 0:01:01]} 61... Kf4 {[%clk 0:00:11.4]} 62.
Rf1+ {[%clk 0:01:01.1]} 62... Ke5 {[%clk 0:00:11.8]} 63. Re1+ {[%clk 0:01:01.7]}
63... Kf6 {[%clk 0:00:12]} 64. Rf1 {[%clk 0:01:02.1]} 64... Rg7 {[%clk
0:00:11.9]} 65. Kh3 {[%clk 0:00:59.1]} 65... Rg6 {[%clk 0:00:08.6]} 66. Kh4
{[%clk 0:00:56.7]} 66... Rg8 {[%clk 0:00:08.5]} 67. Kh3 {[%clk 0:00:56.8]} 67...
Ke5 {[%clk 0:00:08.7]} 68. Re1+ {[%clk 0:00:56.7]} 68... Kd4 {[%clk 0:00:08.9]}
69. Rf1 {[%clk 0:00:53.3]} 69... Ke4 {[%clk 0:00:09]} 70. Re1+ {[%clk
0:00:53.1]} 70... Kf3 {[%clk 0:00:09]} 71. Rf1+ {[%clk 0:00:52.8]} 71... Ke4
{[%clk 0:00:09.3]} 72. Re1+ {[%clk 0:00:53.1]} 72... Kf4 {[%clk 0:00:09.7]} 73.
Rf1+ {[%clk 0:00:53.2]} 73... Ke5 {[%clk 0:00:10.1]} 74. Re1+ {[%clk 0:00:53.3]}
74... Kf6 {[%clk 0:00:10.3]} 75. Rf1 {[%clk 0:00:53.9]} 75... Rg7 {[%clk
0:00:10]} 76. Kh4 {[%clk 0:00:52.1]} 76... Rg4+ {[%clk 0:00:10.1]} 77. Kh3
{[%clk 0:00:52.4]} 77... Kg5 {[%clk 0:00:09.3]} 78. Kh2 {[%clk 0:00:45.4]} 78...
f4 {[%clk 0:00:09]} 79. Rg1 {[%clk 0:00:34.4]} 79... Kh4 {[%clk 0:00:09]} 80.
Rxg4+ {[%clk 0:00:33.8]} 80... Kxg4 {[%clk 0:00:08.4]} 81. Kg2 {[%clk
0:00:34.7]} 81... f3+ {[%clk 0:00:08.5]} 82. Kf2 {[%clk 0:00:34.9]} 82... Kf4
{[%clk 0:00:08.8]} 83. Kf1 {[%clk 0:00:35.3]} 83... Kg3 {[%clk 0:00:09]} 84. Kg1
{[%clk 0:00:35.4]} 84... Kg4 {[%clk 0:00:08.5]} 85. Kf2 {[%clk 0:00:35.7]} 85...
Kf4 {[%clk 0:00:08.8]} 86. Kf1 {[%clk 0:00:36.6]} 86... Ke3 {[%clk 0:00:09.1]}
87. Ke1 {[%clk 0:00:37]} 87... f2+ {[%clk 0:00:09.1]} 88. Kf1 {[%clk 0:00:37.2]}
88... Kf3 {[%clk 0:00:09]} 1/2-1/2

[Event "*** SCC Grand Prix: Titled Tuesday Blitz"]
[Site "Chess.com"]
[Date "2020.08.11"]
[Round "10"]
[White "GlennTipton"]
[Black "Harsha_Bharathakoti"]
[Result "1/2-1/2"]
[WhiteElo "2447"]
[BlackElo "2807"]
[TimeControl "180+1"]
[EndTime "11:59:43 PDT"]
[Termination "Game drawn by agreement"]

1. e4 {[%clk 0:03:00]} 1... c5 {[%clk 0:03:00.7]} 2. Nc3 {[%clk 0:03:00]} 2...
Nc6 {[%clk 0:03:00.8]} 3. f4 {[%clk 0:03:00.7]} 3... g6 {[%clk 0:03:00.8]} 4.
Nf3 {[%clk 0:03:01.6]} 4... Bg7 {[%clk 0:03:01.5]} 5. Bb5 {[%clk 0:03:02.2]}
5... Nd4 {[%clk 0:03:02]} 6. Bd3 {[%clk 0:03:02.9]} 6... e6 {[%clk 0:03:02]} 7.
Nxd4 {[%clk 0:03:03.6]} 7... cxd4 {[%clk 0:03:02.9]} 8. Nb5 {[%clk 0:03:04.2]}
8... Ne7 {[%clk 0:03:03.8]} 9. c3 {[%clk 0:03:04.7]} 9... dxc3 {[%clk
0:02:59.7]} 10. Nd6+ {[%clk 0:03:04.3]} 10... Kf8 {[%clk 0:03:00.4]} 11. dxc3
{[%clk 0:03:04.1]} 11... Qb6 {[%clk 0:02:57.3]} 12. e5 {[%clk 0:03:00.4]} 12...
Nf5 {[%clk 0:02:22.9]} 13. Bxf5 {[%clk 0:02:58.5]} 13... gxf5 {[%clk 0:02:23.8]}
14. Qe2 {[%clk 0:02:56.9]} 14... Qc6 {[%clk 0:02:22.1]} 15. Be3 {[%clk
0:02:50.2]} 15... h5 {[%clk 0:02:19]} 16. O-O-O {[%clk 0:02:43.5]} 16... b5
{[%clk 0:02:18.9]} 17. Qxb5 {[%clk 0:02:34.9]} 17... Qxb5 {[%clk 0:02:13.8]} 18.
Nxb5 {[%clk 0:02:34.5]} 18... Bb7 {[%clk 0:02:14.7]} 19. Rxd7 {[%clk 0:02:22.1]}
19... Bc6 {[%clk 0:02:09]} 20. Rxa7 {[%clk 0:02:19]} 20... Rxa7 {[%clk
0:02:01.7]} 21. Nxa7 {[%clk 0:02:19.9]} 21... Bxg2 {[%clk 0:02:02.6]} 22. Bc5+
{[%clk 0:02:16.6]} 22... Kg8 {[%clk 0:02:00.6]} 23. Rg1 {[%clk 0:02:15.3]} 23...
Bf3 {[%clk 0:01:56.3]} 24. Nc8 {[%clk 0:02:06.1]} 24... Kh7 {[%clk 0:01:56.1]}
25. Nd6 {[%clk 0:02:06.2]} 25... Bh6 {[%clk 0:01:55.7]} 26. Be3 {[%clk
0:02:04.4]} 26... Ra8 {[%clk 0:01:52]} 27. a3 {[%clk 0:01:56.2]} 27... Ra4
{[%clk 0:01:41]} 28. c4 {[%clk 0:01:49.5]} 28... Bf8 {[%clk 0:01:22.7]} 29. Ne8
{[%clk 0:01:39.6]} 29... Rxc4+ {[%clk 0:01:21.7]} 30. Kd2 {[%clk 0:01:39.7]}
30... Bg4 {[%clk 0:00:54.2]} 31. Nf6+ {[%clk 0:01:37.3]} 31... Kh6 {[%clk
0:00:54.8]} 32. Rg3 {[%clk 0:01:36.5]} 32... h4 {[%clk 0:00:23.4]} 33. Nxg4+
{[%clk 0:01:35.7]} 33... fxg4 {[%clk 0:00:24.3]} 34. Rxg4 {[%clk 0:01:36.1]}
34... Be7 {[%clk 0:00:25.2]} 35. h3 {[%clk 0:01:32.6]} 35... Rc8 {[%clk
0:00:21.6]} 36. Bd4 {[%clk 0:01:26.3]} 36... Rd8 {[%clk 0:00:20.5]} 37. Ke3
{[%clk 0:01:25]} 37... Rb8 {[%clk 0:00:20]} 38. Kd3 {[%clk 0:01:14.7]} 38...
Rb3+ {[%clk 0:00:20.9]} 39. Bc3 {[%clk 0:01:14.9]} 39... Rb7 {[%clk 0:00:20.6]}
40. a4 {[%clk 0:01:13.5]} 40... Rd7+ {[%clk 0:00:19.8]} 41. Kc2 {[%clk
0:01:12.1]} 41... Rc7 {[%clk 0:00:20.7]} 42. a5 {[%clk 0:01:09.4]} 42... Bb4
{[%clk 0:00:21]} 43. a6 {[%clk 0:01:04.4]} 43... Bxc3 {[%clk 0:00:21.1]} 44.
bxc3 {[%clk 0:01:05.3]} 44... Ra7 {[%clk 0:00:22]} 45. Rxh4+ {[%clk 0:01:00]}
45... Kg6 {[%clk 0:00:22.9]} 46. Rg4+ {[%clk 0:00:59.4]} 46... Kf5 {[%clk
0:00:23.1]} 47. Rg7 {[%clk 0:00:59.4]} 47... Kxf4 {[%clk 0:00:22.6]} 48. h4
{[%clk 0:00:57.1]} 48... Kxe5 {[%clk 0:00:23.2]} 49. h5 {[%clk 0:00:57.6]} 49...
Rxa6 {[%clk 0:00:15.1]} 50. Rxf7 {[%clk 0:00:53.6]} 50... Ra2+ {[%clk
0:00:15.3]} 51. Kd3 {[%clk 0:00:51]} 51... Rh2 {[%clk 0:00:16.2]} 52. Rh7 {[%clk
0:00:50.2]} 52... Rh3+ {[%clk 0:00:12.9]} 53. Kc4 {[%clk 0:00:50.1]} 53... Kf5
{[%clk 0:00:12.8]} 54. Kb4 {[%clk 0:00:46.8]} 54... e5 {[%clk 0:00:13]} 55. c4
{[%clk 0:00:47.3]} 55... e4 {[%clk 0:00:13.7]} 56. c5 {[%clk 0:00:47.5]} 56...
e3 {[%clk 0:00:14.4]} 57. Re7 {[%clk 0:00:43.8]} 57... Kf4 {[%clk 0:00:13.7]}
58. c6 {[%clk 0:00:42]} 58... Rxh5 {[%clk 0:00:13.7]} 59. c7 {[%clk 0:00:42.2]}
59... Rh8 {[%clk 0:00:14.3]} 60. Kc3 {[%clk 0:00:36.9]} 60... Rc8 {[%clk
0:00:05.8]} 61. Kd3 {[%clk 0:00:37.2]} 61... Kf5 {[%clk 0:00:04.7]} 62. Kd4
{[%clk 0:00:27.2]} 62... e2 {[%clk 0:00:04]} 63. Kd5 {[%clk 0:00:21.4]} 63...
Rxc7 {[%clk 0:00:04.7]} 64. Rxe2 {[%clk 0:00:19.6]} 64... Rd7+ {[%clk
0:00:05.2]} 65. Kc6 {[%clk 0:00:20]} 65... Rd1 {[%clk 0:00:06.1]} 66. Rf2+
{[%clk 0:00:20.1]} 66... Ke4 {[%clk 0:00:06.5]} 67. Rf7 {[%clk 0:00:20.2]} 67...
Ke3 {[%clk 0:00:06.8]} 68. Kc5 {[%clk 0:00:19.5]} 68... Rc1+ {[%clk 0:00:06.7]}
69. Kb4 {[%clk 0:00:19.8]} 69... Rd1 {[%clk 0:00:07.6]} 70. Kc3 {[%clk
0:00:20.1]} 70... Rc1+ {[%clk 0:00:08]} 71. Kb2 {[%clk 0:00:20.5]} 71... Rc8
{[%clk 0:00:08.9]} 72. Re7+ {[%clk 0:00:20.5]} 72... Kd4 {[%clk 0:00:09.5]}
1/2-1/2